[Event "Titled Tuesday Blitz November 16 2021"]
[White "Csonka, Balazs"]
[Black "Visakh N R"]
[WhiteFideId "742910"]
[BlackFideId "25012223"]
[WhiteElo "2404"]
[BlackElo "2454"]
[Result "0-1"]
[Round "06"]
[TimeControl "180+1"]
[Date "2021.11.16"]
[WhiteClock "0:00:01"]
[BlackClock "0:00:13"]

1. e4 {[%clk 0:03:00]}  c5 {[%clk 0:02:52]} 2. Nf3 {[%clk 0:03:00]}  d6 {[%clk 0:02:47]} 3. Bb5+ {[%clk 0:02:56]}  Bd7 {[%clk 0:02:46]} 4. Bxd7+ {[%clk 0:02:54]}  Qxd7 {[%clk 0:02:47]} 5. c4 {[%clk 0:02:54]}  Nf6 {[%clk 0:02:41]} 6. Nc3 {[%clk 0:02:53]}  e5 {[%clk 0:02:41]} 7. O-O {[%clk 0:02:43]}  Be7 {[%clk 0:02:42]} 8. d3 {[%clk 0:02:42]}  Nc6 {[%clk 0:02:42]} 9. Bg5 {[%clk 0:02:41]}  O-O {[%clk 0:02:41]} 10. Bxf6 {[%clk 0:02:24]}  Bxf6 {[%clk 0:02:42]} 11. Rb1 {[%clk 0:02:24]}  Bd8 {[%clk 0:02:29]} 12. a3 {[%clk 0:02:22]}  Ba5 {[%clk 0:02:21]} 13. Nd5 {[%clk 0:02:19]}  Bd8 {[%clk 0:02:20]} 14. b4 {[%clk 0:02:06]}  b6 {[%clk 0:02:21]} 15. Qa4 {[%clk 0:01:51]}  Rc8 {[%clk 0:02:16]} 16. Ne1 {[%clk 0:01:42]}  f5 {[%clk 0:02:13]} 17. Nc2 {[%clk 0:01:37]}  Rf7 {[%clk 0:02:08]} 18. b5 {[%clk 0:01:07]}  Ne7 {[%clk 0:01:59]} 19. Nxe7+ {[%clk 0:01:06]}  Bxe7 {[%clk 0:02:00]} 20. exf5 {[%clk 0:01:03]}  Qxf5 {[%clk 0:01:56]} 21. Rbd1 {[%clk 0:00:34]}  Bh4 {[%clk 0:01:38]} 22. g3 {[%clk 0:00:29]}  Bg5 {[%clk 0:01:37]} 23. Ne3 {[%clk 0:00:27]}  Bxe3 {[%clk 0:01:37]} 24. fxe3 {[%clk 0:00:28]}  Qd7 {[%clk 0:01:33]} 25. Rxf7 {[%clk 0:00:27]}  Qxf7 {[%clk 0:01:34]} 26. Rf1 {[%clk 0:00:24]}  Qe7 {[%clk 0:01:34]} 27. e4 {[%clk 0:00:22]}  Qd7 {[%clk 0:01:31]} 28. Qd1 {[%clk 0:00:20]}  h6 {[%clk 0:01:24]} 29. Qf3 {[%clk 0:00:19]}  Ra8 {[%clk 0:01:21]} 30. a4 {[%clk 0:00:17]}  a6 {[%clk 0:01:19]} 31. Rf2 {[%clk 0:00:15]}  axb5 {[%clk 0:01:17]} 32. axb5 {[%clk 0:00:16]}  Qh3 {[%clk 0:01:14]} 33. Qg2 {[%clk 0:00:10]}  Ra1+ {[%clk 0:00:58]} 34. Rf1 {[%clk 0:00:10]}  Qxg2+ {[%clk 0:00:57]} 35. Kxg2 {[%clk 0:00:10]}  Ra3 {[%clk 0:00:57]} 36. Rf3 {[%clk 0:00:09]}  Ra2+ {[%clk 0:00:57]} 37. Rf2 {[%clk 0:00:09]}  Ra3 {[%clk 0:00:57]} 38. Rf3 {[%clk 0:00:09]}  h5 {[%clk 0:00:53]} 39. h3 {[%clk 0:00:08]}  Kh7 {[%clk 0:00:50]} 40. Kf2 {[%clk 0:00:07]}  Kg6 {[%clk 0:00:50]} 41. h4 {[%clk 0:00:07]}  Ra2+ {[%clk 0:00:47]} 42. Kf1 {[%clk 0:00:07]}  Rd2 {[%clk 0:00:47]} 43. Ke1 {[%clk 0:00:07]}  Rh2 {[%clk 0:00:45]} 44. Kf1 {[%clk 0:00:06]}  Ra2 {[%clk 0:00:41]} 45. Ke1 {[%clk 0:00:06]}  Kh6 {[%clk 0:00:41]} 46. Rf7 {[%clk 0:00:03]}  Rg2 {[%clk 0:00:37]} 47. Rc7 {[%clk 0:00:02]}  Rxg3 {[%clk 0:00:36]} 48. Rc6 {[%clk 0:00:03]}  Rxd3 {[%clk 0:00:34]} 49. Rxb6 {[%clk 0:00:03]}  g5 {[%clk 0:00:34]} 50. hxg5+ {[%clk 0:00:02]}  Kxg5 {[%clk 0:00:35]} 51. Rb8 {[%clk 0:00:02]}  Rb3 {[%clk 0:00:34]} 52. Rd8 {[%clk 0:00:01]}  Rb4 {[%clk 0:00:27]} 53. Rxd6 {[%clk 0:00:02]}  Rxc4 {[%clk 0:00:27]} 54. Rd5 {[%clk 0:00:03]}  Kf4 {[%clk 0:00:27]} 55. b6 {[%clk 0:00:03]}  Rb4 {[%clk 0:00:27]} 56. Rxc5 {[%clk 0:00:02]}  Rxb6 {[%clk 0:00:27]} 57. Rc4 {[%clk 0:00:03]}  Rb2 {[%clk 0:00:25]} 58. Kf1 {[%clk 0:00:03]}  h4 {[%clk 0:00:26]} 59. Kg1 {[%clk 0:00:03]}  h3 {[%clk 0:00:26]} 60. Ra4 {[%clk 0:00:02]}  Rg2+ {[%clk 0:00:25]} 61. Kh1 {[%clk 0:00:02]}  Re2 {[%clk 0:00:26]} 62. Ra3 {[%clk 0:00:02]}  Re3 {[%clk 0:00:26]} 63. Ra1 {[%clk 0:00:02]}  Rxe4 {[%clk 0:00:25]} 64. Kh2 {[%clk 0:00:02]}  Kg4 {[%clk 0:00:25]} 65. Rg1+ {[%clk 0:00:02]}  Kh4 {[%clk 0:00:25]} 66. Kh1 {[%clk 0:00:02]}  Re2 {[%clk 0:00:24]} 67. Rf1 {[%clk 0:00:02]}  e4 {[%clk 0:00:23]} 68. Rf4+ {[%clk 0:00:02]}  Kg3 {[%clk 0:00:23]} 69. Rf1 {[%clk 0:00:02]}  e3 {[%clk 0:00:22]} 70. Rg1+ {[%clk 0:00:02]}  Kf3 {[%clk 0:00:21]} 71. Rf1+ {[%clk 0:00:02]}  Rf2 {[%clk 0:00:22]} 72. Ra1 {[%clk 0:00:02]}  e2 {[%clk 0:00:21]} 73. Ra3+ {[%clk 0:00:02]}  Kg4 {[%clk 0:00:20]} 74. Ra1 {[%clk 0:00:01]}  Kg5 {[%clk 0:00:14]} 75. Ra6 {[%clk 0:00:01]}  e1=Q# {[%clk 0:00:13]} 0-1


[Site "https://www.chess.com"]

[Event "Titled Tuesday Blitz November 16 2021"]
[White "Drygalov, Andrey"]
[Black "Samunenkov, Ihor"]
[WhiteFideId "24171735"]
[BlackFideId "14187086"]
[WhiteElo "2540"]
[BlackElo "2348"]
[Result "1-0"]
[Round "06"]
[TimeControl "180+1"]
[Date "2021.11.16"]
[WhiteClock "0:00:27"]
[BlackClock "0:00:02"]

1. e4 {[%clk 0:03:00]}  c5 {[%clk 0:02:59]} 2. Nf3 {[%clk 0:03:00]}  Nc6 {[%clk 0:02:59]} 3. Bb5 {[%clk 0:03:00]}  g6 {[%clk 0:02:59]} 4. Bxc6 {[%clk 0:03:00]}  dxc6 {[%clk 0:02:58]} 5. d3 {[%clk 0:03:00]}  Bg7 {[%clk 0:02:59]} 6. h3 {[%clk 0:03:01]}  Nf6 {[%clk 0:02:58]} 7. Nc3 {[%clk 0:03:01]}  Nd7 {[%clk 0:02:58]} 8. Be3 {[%clk 0:03:00]}  e5 {[%clk 0:02:59]} 9. Qd2 {[%clk 0:03:00]}  h6 {[%clk 0:02:59]} 10. a3 {[%clk 0:02:57]}  f5 {[%clk 0:02:41]} 11. exf5 {[%clk 0:02:41]}  gxf5 {[%clk 0:02:41]} 12. Qe2 {[%clk 0:02:40]}  O-O {[%clk 0:02:39]} 13. g4 {[%clk 0:02:31]}  f4 {[%clk 0:01:31]} 14. Bd2 {[%clk 0:02:30]}  Nf6 {[%clk 0:01:24]} 15. g5 {[%clk 0:02:22]}  hxg5 {[%clk 0:01:20]} 16. Nxg5 {[%clk 0:02:23]}  Nd5 {[%clk 0:01:12]} 17. Nce4 {[%clk 0:02:21]}  Bf5 {[%clk 0:01:09]} 18. Rg1 {[%clk 0:02:19]}  Qe7 {[%clk 0:00:59]} 19. O-O-O {[%clk 0:02:19]}  Nf6 {[%clk 0:00:54]} 20. Bc3 {[%clk 0:02:04]}  Nd5 {[%clk 0:00:47]} 21. Bd2 {[%clk 0:02:01]}  Nf6 {[%clk 0:00:47]} 22. Nxf6+ {[%clk 0:01:59]}  Qxf6 {[%clk 0:00:46]} 23. Bc3 {[%clk 0:01:58]}  Rae8 {[%clk 0:00:45]} 24. Nf3 {[%clk 0:01:54]}  Qh6 {[%clk 0:00:35]} 25. Bxe5 {[%clk 0:01:45]}  Kh8 {[%clk 0:00:15]} 26. Rxg7 {[%clk 0:01:15]}  Rxe5 {[%clk 0:00:14]} 27. Qxe5 {[%clk 0:01:16]}  Qxg7 {[%clk 0:00:15]} 28. Qxc5 {[%clk 0:01:13]}  Qf6 {[%clk 0:00:11]} 29. Rg1 {[%clk 0:01:11]}  Rg8 {[%clk 0:00:12]} 30. Rxg8+ {[%clk 0:01:04]}  Kxg8 {[%clk 0:00:12]} 31. h4 {[%clk 0:00:57]}  Bg4 {[%clk 0:00:10]} 32. Ng5 {[%clk 0:00:44]}  Kg7 {[%clk 0:00:07]} 33. Ne4 {[%clk 0:00:42]}  Qxh4 {[%clk 0:00:05]} 34. Qe5+ {[%clk 0:00:41]}  Kg6 {[%clk 0:00:05]} 35. Qxf4 {[%clk 0:00:30]}  Qh1+ {[%clk 0:00:05]} 36. Kd2 {[%clk 0:00:31]}  Qd1+ {[%clk 0:00:06]} 37. Kc3 {[%clk 0:00:32]}  Qe1+ {[%clk 0:00:06]} 38. Qd2 {[%clk 0:00:32]}  Qxd2+ {[%clk 0:00:04]} 39. Kxd2 {[%clk 0:00:32]}  b6 {[%clk 0:00:03]} 40. Ke3 {[%clk 0:00:32]}  Bd1 {[%clk 0:00:02]} 41. c4 {[%clk 0:00:31]}  Kf5 {[%clk 0:00:02]} 42. d4 {[%clk 0:00:32]}  Bc2 {[%clk 0:00:02]} 43. f3 {[%clk 0:00:31]}  Bb1 {[%clk 0:00:02]} 44. Nc3 {[%clk 0:00:29]}  Bc2 {[%clk 0:00:02]} 45. d5 {[%clk 0:00:27]}  cxd5 {[%clk 0:00:02]} 46. Nxd5 {[%clk 0:00:28]}  Bb3 {[%clk 0:00:01]} 47. Kd4 {[%clk 0:00:28]}  Bd1 {[%clk 0:00:02]} 48. Ne3+ {[%clk 0:00:27]} 1-0


[Site "https://www.chess.com"]

[Event "Titled Tuesday Blitz November 16 2021"]
[White "FGHSMN"]
[Black "Shipov, Sergei"]
[BlackFideId "4113624"]
[WhiteElo "2675"]
[BlackElo "2794"]
[Result "1-0"]
[Round "06"]
[TimeControl "180+1"]
[Date "2021.11.16"]
[WhiteClock "0:00:45"]
[BlackClock "0:00:03"]

1. e4 {[%clk 0:03:00]}  e6 {[%clk 0:02:59]} 2. d4 {[%clk 0:02:57]}  d5 {[%clk 0:02:59]} 3. Nc3 {[%clk 0:02:57]}  h6 {[%clk 0:02:59]} 4. exd5 {[%clk 0:02:52]}  exd5 {[%clk 0:02:59]} 5. Bd3 {[%clk 0:02:53]}  Nf6 {[%clk 0:02:58]} 6. Nge2 {[%clk 0:02:53]}  c5 {[%clk 0:02:51]} 7. dxc5 {[%clk 0:02:53]}  Bxc5 {[%clk 0:02:51]} 8. O-O {[%clk 0:02:51]}  O-O {[%clk 0:02:51]} 9. Na4 {[%clk 0:02:44]}  Be7 {[%clk 0:02:48]} 10. Bf4 {[%clk 0:02:42]}  Nc6 {[%clk 0:02:48]} 11. Nac3 {[%clk 0:02:38]}  a6 {[%clk 0:02:47]} 12. Qd2 {[%clk 0:02:37]}  Re8 {[%clk 0:02:44]} 13. Rfe1 {[%clk 0:02:35]}  Bc5 {[%clk 0:02:39]} 14. Rad1 {[%clk 0:02:25]}  Ng4 {[%clk 0:02:22]} 15. Bg3 {[%clk 0:02:21]}  Ne3 {[%clk 0:02:22]} 16. Rb1 {[%clk 0:02:10]}  Bg4 {[%clk 0:02:13]} 17. Nf4 {[%clk 0:02:03]}  Nc4 {[%clk 0:02:00]} 18. Rxe8+ {[%clk 0:02:02]}  Qxe8 {[%clk 0:01:59]} 19. Qc1 {[%clk 0:02:02]}  N4e5 {[%clk 0:01:20]} 20. Nfxd5 {[%clk 0:01:54]}  Nxd3 {[%clk 0:01:11]} 21. cxd3 {[%clk 0:01:54]}  Rc8 {[%clk 0:01:10]} 22. Ne4 {[%clk 0:01:45]}  Bd4 {[%clk 0:00:44]} 23. Nd6 {[%clk 0:01:38]}  Qd7 {[%clk 0:00:32]} 24. Nxc8 {[%clk 0:01:37]}  Qxd5 {[%clk 0:00:31]} 25. Qxc6 {[%clk 0:01:36]}  Qxc6 {[%clk 0:00:19]} 26. Ne7+ {[%clk 0:01:36]}  Kf8 {[%clk 0:00:19]} 27. Nxc6 {[%clk 0:01:36]}  bxc6 {[%clk 0:00:20]} 28. Rc1 {[%clk 0:01:35]}  Bd7 {[%clk 0:00:13]} 29. b3 {[%clk 0:01:34]}  Ke7 {[%clk 0:00:12]} 30. Bf4 {[%clk 0:01:33]}  g5 {[%clk 0:00:11]} 31. Be3 {[%clk 0:01:33]}  Be5 {[%clk 0:00:11]} 32. g3 {[%clk 0:01:28]}  Ke6 {[%clk 0:00:09]} 33. Kf1 {[%clk 0:01:27]}  f6 {[%clk 0:00:09]} 34. Ke2 {[%clk 0:01:28]}  Bd6 {[%clk 0:00:08]} 35. Rc4 {[%clk 0:01:26]}  Kd5 {[%clk 0:00:04]} 36. f4 {[%clk 0:01:21]}  g4 {[%clk 0:00:04]} 37. f5 {[%clk 0:01:16]}  h5 {[%clk 0:00:04]} 38. Bf4 {[%clk 0:01:03]}  Be7 {[%clk 0:00:02]} 39. Ra4 {[%clk 0:00:53]}  Bc8 {[%clk 0:00:02]} 40. Ra5+ {[%clk 0:00:53]}  c5 {[%clk 0:00:02]} 41. b4 {[%clk 0:00:50]}  Kc6 {[%clk 0:00:02]} 42. bxc5 {[%clk 0:00:49]}  Bxc5 {[%clk 0:00:03]} 43. Ra4 {[%clk 0:00:47]}  Bxf5 {[%clk 0:00:03]} 44. Rxa6+ {[%clk 0:00:46]}  Kd5 {[%clk 0:00:03]} 45. Rxf6 {[%clk 0:00:46]}  Bd7 {[%clk 0:00:03]} 46. Rh6 {[%clk 0:00:45]} 1-0


[Site "https://www.chess.com"]

[Event "Titled Tuesday Blitz November 16 2021"]
[White "Golubka, Petro"]
[Black "Pichot, Alan"]
[WhiteFideId "14114224"]
[BlackFideId "110973"]
[WhiteElo "2392"]
[BlackElo "2600"]
[Result "1-0"]
[Round "06"]
[TimeControl "180+1"]
[Date "2021.11.16"]
[WhiteClock "0:00:30"]
[BlackClock "0:00:04"]

1. e4 {[%clk 0:02:36]}  c5 {[%clk 0:02:58]} 2. Nf3 {[%clk 0:02:35]}  e6 {[%clk 0:02:59]} 3. d4 {[%clk 0:02:33]}  cxd4 {[%clk 0:03:00]} 4. Nxd4 {[%clk 0:02:34]}  Nc6 {[%clk 0:02:59]} 5. Nc3 {[%clk 0:02:34]}  Qc7 {[%clk 0:02:59]} 6. Ndb5 {[%clk 0:02:34]}  Qb8 {[%clk 0:02:59]} 7. f4 {[%clk 0:02:34]}  a6 {[%clk 0:02:57]} 8. Nd4 {[%clk 0:02:35]}  Qc7 {[%clk 0:02:57]} 9. Nb3 {[%clk 0:02:30]}  b5 {[%clk 0:02:56]} 10. a3 {[%clk 0:02:28]}  Bb7 {[%clk 0:02:55]} 11. Be3 {[%clk 0:02:29]}  h5 {[%clk 0:02:39]} 12. Bd3 {[%clk 0:02:25]}  Nf6 {[%clk 0:02:37]} 13. h3 {[%clk 0:02:25]}  d6 {[%clk 0:02:17]} 14. Qf3 {[%clk 0:02:16]}  Be7 {[%clk 0:02:08]} 15. O-O {[%clk 0:02:06]}  h4 {[%clk 0:02:04]} 16. Ne2 {[%clk 0:01:57]}  d5 {[%clk 0:01:38]} 17. e5 {[%clk 0:01:53]}  Ne4 {[%clk 0:01:37]} 18. Bxe4 {[%clk 0:01:51]}  dxe4 {[%clk 0:01:36]} 19. Qf2 {[%clk 0:01:51]}  Rc8 {[%clk 0:01:26]} 20. Rad1 {[%clk 0:01:47]}  g6 {[%clk 0:01:22]} 21. Nc3 {[%clk 0:01:45]}  Nd8 {[%clk 0:01:01]} 22. Bb6 {[%clk 0:01:42]}  Qb8 {[%clk 0:01:01]} 23. Bc5 {[%clk 0:01:30]}  Qc7 {[%clk 0:00:25]} 24. Bb6 {[%clk 0:01:27]}  Qb8 {[%clk 0:00:25]} 25. Rfe1 {[%clk 0:01:19]}  Kf8 {[%clk 0:00:24]} 26. Bc5 {[%clk 0:01:15]}  Qc7 {[%clk 0:00:15]} 27. Bd6 {[%clk 0:01:11]}  Bxd6 {[%clk 0:00:07]} 28. exd6 {[%clk 0:01:12]}  Qc6 {[%clk 0:00:04]} 29. Rxe4 {[%clk 0:01:02]}  Rh5 {[%clk 0:00:04]} 30. Re5 {[%clk 0:00:56]}  Rh7 {[%clk 0:00:04]} 31. Rc5 {[%clk 0:00:46]}  Qd7 {[%clk 0:00:04]} 32. Rxc8 {[%clk 0:00:45]}  Qxc8 {[%clk 0:00:04]} 33. Nc5 {[%clk 0:00:44]}  Bc6 {[%clk 0:00:04]} 34. d7 {[%clk 0:00:44]}  Qc7 {[%clk 0:00:04]} 35. b4 {[%clk 0:00:45]}  Rh5 {[%clk 0:00:04]} 36. Nxa6 {[%clk 0:00:39]}  Qb7 {[%clk 0:00:04]} 37. Nc5 {[%clk 0:00:39]}  Qc7 {[%clk 0:00:05]} 38. Qe3 {[%clk 0:00:38]}  Kg8 {[%clk 0:00:04]} 39. N3e4 {[%clk 0:00:36]}  Rf5 {[%clk 0:00:03]} 40. Nd6 {[%clk 0:00:32]}  Rh5 {[%clk 0:00:03]} 41. Ne8 {[%clk 0:00:31]}  Qa7 {[%clk 0:00:03]} 42. Nf6+ {[%clk 0:00:30]}  Kf8 {[%clk 0:00:03]} 43. Nxh5 {[%clk 0:00:31]}  gxh5 {[%clk 0:00:04]} 44. Nxe6+ {[%clk 0:00:30]} 1-0


[Site "https://www.chess.com"]

[Event "Titled Tuesday Blitz November 16 2021"]
[White "Gubajdullin, Alexei"]
[Black "Goltsev, Dmitry"]
[WhiteFideId "4141202"]
[BlackFideId "24176710"]
[WhiteElo "2268"]
[BlackElo "2259"]
[Result "1-0"]
[Round "06"]
[TimeControl "180+1"]
[Date "2021.11.16"]
[WhiteClock "0:00:07"]
[BlackClock "0:00:14"]

1. d4 {[%clk 0:03:00]}  Nf6 {[%clk 0:02:52]} 2. Nf3 {[%clk 0:03:00]}  e6 {[%clk 0:02:52]} 3. Bf4 {[%clk 0:03:00]}  d5 {[%clk 0:02:52]} 4. e3 {[%clk 0:03:00]}  c5 {[%clk 0:02:52]} 5. Nbd2 {[%clk 0:03:00]}  Nc6 {[%clk 0:02:52]} 6. c3 {[%clk 0:03:00]}  Bd6 {[%clk 0:02:52]} 7. Bg3 {[%clk 0:02:56]}  h6 {[%clk 0:02:51]} 8. Ne5 {[%clk 0:02:55]}  Qc7 {[%clk 0:02:44]} 9. f4 {[%clk 0:02:54]}  cxd4 {[%clk 0:02:41]} 10. cxd4 {[%clk 0:02:48]}  Ne7 {[%clk 0:02:38]} 11. Bd3 {[%clk 0:02:46]}  Nf5 {[%clk 0:02:37]} 12. Bf2 {[%clk 0:02:41]}  h5 {[%clk 0:02:37]} 13. Rc1 {[%clk 0:02:33]}  Qa5 {[%clk 0:02:35]} 14. O-O {[%clk 0:02:21]}  Bxe5 {[%clk 0:02:22]} 15. fxe5 {[%clk 0:02:18]}  Ng4 {[%clk 0:02:22]} 16. Nb3 {[%clk 0:02:00]}  Qxa2 {[%clk 0:02:00]} 17. Bb5+ {[%clk 0:01:59]}  Bd7 {[%clk 0:01:50]} 18. Ra1 {[%clk 0:01:30]}  Qxb2 {[%clk 0:01:39]} 19. Bxd7+ {[%clk 0:01:28]}  Kxd7 {[%clk 0:01:35]} 20. Nc5+ {[%clk 0:01:28]}  Ke8 {[%clk 0:01:32]} 21. Qa4+ {[%clk 0:01:24]}  Kf8 {[%clk 0:01:24]} 22. Rab1 {[%clk 0:01:14]}  Qe2 {[%clk 0:01:21]} 23. Rxb7 {[%clk 0:01:09]}  Ngxe3 {[%clk 0:01:16]} 24. Bxe3 {[%clk 0:00:53]}  Qxe3+ {[%clk 0:01:17]} 25. Kh1 {[%clk 0:00:52]}  h4 {[%clk 0:01:13]} 26. Rxf7+ {[%clk 0:00:46]}  Kg8 {[%clk 0:01:01]} 27. R7xf5 {[%clk 0:00:43]}  exf5 {[%clk 0:01:01]} 28. Qd7 {[%clk 0:00:43]}  Rh6 {[%clk 0:00:50]} 29. Qxd5+ {[%clk 0:00:41]}  Kh8 {[%clk 0:00:50]} 30. Qxa8+ {[%clk 0:00:40]}  Kh7 {[%clk 0:00:50]} 31. Qf3 {[%clk 0:00:39]}  Qxd4 {[%clk 0:00:48]} 32. Qxf5+ {[%clk 0:00:39]}  Kh8 {[%clk 0:00:44]} 33. Ne6 {[%clk 0:00:37]}  Qd7 {[%clk 0:00:39]} 34. Ng5 {[%clk 0:00:19]}  Qxf5 {[%clk 0:00:31]} 35. Rxf5 {[%clk 0:00:19]}  Kg8 {[%clk 0:00:31]} 36. e6 {[%clk 0:00:18]}  Rf6 {[%clk 0:00:31]} 37. e7 {[%clk 0:00:16]}  Rxf5 {[%clk 0:00:27]} 38. e8=Q+ {[%clk 0:00:16]}  Rf8 {[%clk 0:00:27]} 39. Qe6+ {[%clk 0:00:15]}  Kh8 {[%clk 0:00:28]} 40. h3 {[%clk 0:00:15]}  a5 {[%clk 0:00:27]} 41. Qg6 {[%clk 0:00:14]}  Rf1+ {[%clk 0:00:25]} 42. Kh2 {[%clk 0:00:14]}  Kg8 {[%clk 0:00:26]} 43. Qe8+ {[%clk 0:00:12]}  Rf8 {[%clk 0:00:26]} 44. Qh5 {[%clk 0:00:11]}  Rf1 {[%clk 0:00:25]} 45. Qe8+ {[%clk 0:00:08]}  Rf8 {[%clk 0:00:22]} 46. Qe6+ {[%clk 0:00:08]}  Kh8 {[%clk 0:00:22]} 47. Qe4 {[%clk 0:00:08]}  Kg8 {[%clk 0:00:14]} 48. Qh7# {[%clk 0:00:07]} 1-0


[Site "https://www.chess.com"]

[Event "Titled Tuesday Blitz November 16 2021"]
[White "Holt, Conrad"]
[Black "Yanchenko, Roman"]
[WhiteFideId "2034387"]
[BlackFideId "4137329"]
[WhiteElo "2586"]
[BlackElo "2514"]
[Result "0-1"]
[Round "06"]
[TimeControl "180+1"]
[Date "2021.11.16"]
[WhiteClock "0:00:08"]
[BlackClock "0:00:26"]

1. d4 {[%clk 0:03:00]}  d5 {[%clk 0:02:48]} 2. c4 {[%clk 0:03:01]}  c6 {[%clk 0:02:48]} 3. Nc3 {[%clk 0:03:01]}  Nf6 {[%clk 0:02:48]} 4. e3 {[%clk 0:03:00]}  g6 {[%clk 0:02:48]} 5. Be2 {[%clk 0:02:59]}  Bg7 {[%clk 0:02:48]} 6. Nf3 {[%clk 0:02:59]}  O-O {[%clk 0:02:48]} 7. O-O {[%clk 0:03:00]}  a6 {[%clk 0:02:48]} 8. b3 {[%clk 0:02:59]}  Bg4 {[%clk 0:02:48]} 9. Bb2 {[%clk 0:02:56]}  e6 {[%clk 0:02:48]} 10. h3 {[%clk 0:02:54]}  Bxf3 {[%clk 0:02:48]} 11. Bxf3 {[%clk 0:02:55]}  Nbd7 {[%clk 0:02:48]} 12. a4 {[%clk 0:02:52]}  Rc8 {[%clk 0:02:45]} 13. a5 {[%clk 0:02:51]}  Re8 {[%clk 0:02:43]} 14. Qb1 {[%clk 0:02:49]}  h6 {[%clk 0:02:40]} 15. Rd1 {[%clk 0:02:46]}  Qc7 {[%clk 0:02:37]} 16. Qa2 {[%clk 0:02:44]}  dxc4 {[%clk 0:02:24]} 17. bxc4 {[%clk 0:02:44]}  e5 {[%clk 0:02:25]} 18. Qb3 {[%clk 0:02:39]}  exd4 {[%clk 0:02:21]} 19. exd4 {[%clk 0:02:39]}  Nh7 {[%clk 0:02:17]} 20. h4 {[%clk 0:02:23]}  Rb8 {[%clk 0:02:08]} 21. c5 {[%clk 0:02:16]}  Qf4 {[%clk 0:02:06]} 22. h5 {[%clk 0:02:04]}  Ng5 {[%clk 0:02:05]} 23. Rd3 {[%clk 0:01:44]}  gxh5 {[%clk 0:02:00]} 24. Ne2 {[%clk 0:01:35]}  Qf5 {[%clk 0:01:53]} 25. Bxh5 {[%clk 0:01:28]}  Nf6 {[%clk 0:01:50]} 26. Ng3 {[%clk 0:01:26]}  Qd5 {[%clk 0:01:50]} 27. Qxd5 {[%clk 0:01:22]}  Nxd5 {[%clk 0:01:51]} 28. Nf5 {[%clk 0:01:20]}  Nf4 {[%clk 0:01:51]} 29. Nxg7 {[%clk 0:01:07]}  Kxg7 {[%clk 0:01:45]} 30. d5+ {[%clk 0:01:07]}  Kg8 {[%clk 0:01:45]} 31. Rd4 {[%clk 0:00:59]}  Nxh5 {[%clk 0:01:43]} 32. Rh4 {[%clk 0:00:56]}  Re2 {[%clk 0:01:32]} 33. Rb1 {[%clk 0:00:54]}  Ng7 {[%clk 0:01:26]} 34. Bxg7 {[%clk 0:00:51]}  Kxg7 {[%clk 0:01:20]} 35. dxc6 {[%clk 0:00:50]}  Rc2 {[%clk 0:01:19]} 36. Rxb7 {[%clk 0:00:21]}  Rc8 {[%clk 0:01:18]} 37. f4 {[%clk 0:00:20]}  Ne4 {[%clk 0:01:15]} 38. Rg4+ {[%clk 0:00:14]}  Kf6 {[%clk 0:01:15]} 39. Rh4 {[%clk 0:00:12]}  Rxc5 {[%clk 0:00:49]} 40. Rxh6+ {[%clk 0:00:10]}  Kg7 {[%clk 0:00:50]} 41. Rh4 {[%clk 0:00:09]}  R8xc6 {[%clk 0:00:45]} 42. Rg4+ {[%clk 0:00:09]}  Kf6 {[%clk 0:00:44]} 43. Rh4 {[%clk 0:00:10]}  Nd6 {[%clk 0:00:35]} 44. Ra7 {[%clk 0:00:09]}  Rxa5 {[%clk 0:00:33]} 45. Rh6+ {[%clk 0:00:08]}  Kg7 {[%clk 0:00:33]} 46. Rh3 {[%clk 0:00:09]}  Ra1+ {[%clk 0:00:29]} 47. Kh2 {[%clk 0:00:09]}  Rcc1 {[%clk 0:00:27]} 48. Rg3+ {[%clk 0:00:09]}  Kf6 {[%clk 0:00:27]} 49. Rg5 {[%clk 0:00:08]}  Ne4 {[%clk 0:00:26]} 0-1


[Site "https://www.chess.com"]

[Event "Titled Tuesday Blitz November 16 2021"]
[White "Ibrahimli, Murad"]
[Black "Tarigan, Gilbert Elroy"]
[WhiteFideId "13410229"]
[BlackFideId "7108133"]
[WhiteElo "2109"]
[BlackElo "1908"]
[Result "1-0"]
[Round "06"]
[TimeControl "180+1"]
[Date "2021.11.16"]
[WhiteClock "0:00:09"]
[BlackClock "0:00:02"]

1. d4 {[%clk 0:03:00]}  Nf6 {[%clk 0:02:56]} 2. c4 {[%clk 0:03:00]}  g6 {[%clk 0:02:55]} 3. Nc3 {[%clk 0:03:00]}  Bg7 {[%clk 0:02:55]} 4. e4 {[%clk 0:02:59]}  d6 {[%clk 0:02:56]} 5. Nf3 {[%clk 0:02:59]}  O-O {[%clk 0:02:56]} 6. Be2 {[%clk 0:02:57]}  e5 {[%clk 0:02:56]} 7. Be3 {[%clk 0:02:57]}  exd4 {[%clk 0:02:54]} 8. Nxd4 {[%clk 0:02:57]}  Re8 {[%clk 0:02:53]} 9. Qc2 {[%clk 0:02:56]}  Nc6 {[%clk 0:02:50]} 10. Nxc6 {[%clk 0:02:51]}  bxc6 {[%clk 0:02:51]} 11. Rd1 {[%clk 0:02:50]}  Ng4 {[%clk 0:02:43]} 12. Bxg4 {[%clk 0:02:48]}  Bxg4 {[%clk 0:02:44]} 13. f3 {[%clk 0:02:48]}  Be6 {[%clk 0:02:44]} 14. b3 {[%clk 0:02:41]}  Qh4+ {[%clk 0:02:40]} 15. Bf2 {[%clk 0:02:36]}  Qh5 {[%clk 0:02:35]} 16. Ne2 {[%clk 0:02:20]}  Qa5+ {[%clk 0:02:00]} 17. Kf1 {[%clk 0:02:14]}  Qb4 {[%clk 0:01:54]} 18. Bd4 {[%clk 0:02:08]}  Bh6 {[%clk 0:01:52]} 19. Bc3 {[%clk 0:02:05]}  Qb6 {[%clk 0:01:51]} 20. Ba1 {[%clk 0:01:57]}  Bg7 {[%clk 0:01:45]} 21. Bxg7 {[%clk 0:01:56]}  Kxg7 {[%clk 0:01:46]} 22. Qc3+ {[%clk 0:01:55]}  f6 {[%clk 0:01:39]} 23. h4 {[%clk 0:01:54]}  a5 {[%clk 0:01:31]} 24. a4 {[%clk 0:01:10]}  Rab8 {[%clk 0:01:27]} 25. Rd3 {[%clk 0:01:10]}  Qb4 {[%clk 0:01:17]} 26. Qc2 {[%clk 0:01:04]}  f5 {[%clk 0:00:57]} 27. exf5 {[%clk 0:00:32]}  Bxf5 {[%clk 0:00:58]} 28. Qb2+ {[%clk 0:00:32]}  Kg8 {[%clk 0:00:54]} 29. Rc3 {[%clk 0:00:32]}  Qc5 {[%clk 0:00:24]} 30. Qd2 {[%clk 0:00:28]}  h5 {[%clk 0:00:11]} 31. Nd4 {[%clk 0:00:22]}  Bd7 {[%clk 0:00:06]} 32. g3 {[%clk 0:00:16]}  Qe5 {[%clk 0:00:05]} 33. Kg2 {[%clk 0:00:15]}  c5 {[%clk 0:00:06]} 34. Nb5 {[%clk 0:00:12]}  Bxb5 {[%clk 0:00:05]} 35. axb5 {[%clk 0:00:12]}  Ra8 {[%clk 0:00:06]} 36. Ra1 {[%clk 0:00:09]}  Qf6 {[%clk 0:00:05]} 37. Kf2 {[%clk 0:00:09]}  Rf8 {[%clk 0:00:03]} 38. Re1 {[%clk 0:00:09]}  Rfe8 {[%clk 0:00:03]} 39. Rce3 {[%clk 0:00:09]}  Rxe3 {[%clk 0:00:03]} 40. Rxe3 {[%clk 0:00:09]}  a4 {[%clk 0:00:03]} 41. Qd5+ {[%clk 0:00:10]}  Kg7 {[%clk 0:00:01]} 42. Qxa8 {[%clk 0:00:10]}  Qb2+ {[%clk 0:00:01]} 43. Re2 {[%clk 0:00:09]}  Qd4+ {[%clk 0:00:02]} 44. Kg2 {[%clk 0:00:09]}  axb3 {[%clk 0:00:01]} 45. Re7+ {[%clk 0:00:09]}  Kf6 {[%clk 0:00:02]} 46. Qf8# {[%clk 0:00:09]} 1-0


[Site "https://www.chess.com"]